[Event "2nd Sharjah Masters 2018"]
[Site "Sharjah"]
[Date "2018.04.16"]
[Round "6"]
[White "Srija, Seshadri"]
[Black "Ahmed, Fareed"]
[Result "0-1"]
[ECO "C06"]
[WhiteElo "2264"]
[BlackElo "1989"]
[Annotator "NA RC"]
[PlyCount "96"]
[EventDate "2018.??.??"]
[EventType "swiss"]
[EventCountry "UAE"]
[SourceTitle "playchess.com"]
[Source "ChessBase"]
[SourceQuality "1"]
[TimeControl "5400+30"]

1. e4 {[%emt 0:00:00]} e6 {[%emt 0:00:05]} 2. d4 {[%emt 0:00:00]} d5 {[%emt 0:00:08]} 3. Nd2 {[%emt 0:00:00]} Nf6 {[%emt 0:00:17]} 4. e5 {[%emt 0:00:00]} Nfd7 {[%emt 0:00:09]} 5. Bd3 {[%emt 0:00:08]} c5 {[%emt 0:00:06]} 6. c3 {[%emt 0:00:05]} Nc6 {[%emt 0:00:09]} 7. Ne2 {[%emt 0:00:10]} cxd4 {[%emt 0:00:17]} 8. cxd4 {[%emt 0:00:06]} f6 {[%emt 0:00:05]} 9. exf6 {[%emt 0:00:09]} Nxf6 {[%emt 0:00:08]} 10. Nf3 {[%emt 0:00:08]} Bd6 {[%emt 0:00:07]} 11. O-O {[%emt 0:00:08]} Qc7 {[%emt 0:00:14]} 12. h3 {[%emt 0:00:05]} O-O {[%emt 0:00:36]} 13. Be3 {[%emt 0:00:07]} Bd7 {[%emt 0:19:28]} 14. Re1 {[%emt 0:00:29]} Rae8 {[%emt 0:06:46]} 15. Rc1 {[%emt 0:00:29]} Re7 {[%emt 0:04:01]} 16. Nc3 {[%emt 0:00:32]} Qb8 {[%emt 0:06:18]} 17. Na4 {[%emt 0:00:21]} Be8 {[%emt 0:01:51]} 18. Nc5 {[%emt 0:01:03]} Bh5 {[%emt 0:06:49]} 19. g4 {[%emt 0:00:42]} Nxg4 {[%emt 0:17:18]} 20. hxg4 {[%emt 0:01:28]} Bxg4 {[%emt 0:00:09]} 21. Be2 {[%emt 0:00:12]} Qe8 {[%emt 0:17:41]} 22. Ng5 {[%emt 0:50:39]} Bxe2 {[%emt 0:05:47]} 23. Qxe2 {[%emt 0:00:08]} Qg6 {[%emt 0:06:12]} 24. Qd3 {[%emt 0:02:59]} Rf5 {[%emt 0:02:33]} 25. Qd2 {[%emt 0:04:31]} Bxc5 {[%emt 0:02:27]} 26. Rxc5 {[%emt 0:00:07]} h6 {[%emt 0:00:03]} 27. b4 {[%emt 0:00:22]} hxg5 {[%emt 0:01:52]} 28. b5 {[%emt 0:00:06]} Nd8 {[%emt 0:00:19]} 29. Rc8 {[%emt 0:00:19]} Rf8 {[%emt 0:01:39]} 30. Rec1 {[%emt 0:04:01]} Ree8 {[%emt 0:01:03]} 31. Kf1 {[%emt 0:01:09]} g4 {[%emt 0:00:22]} 32. Qc2 {[%emt 0:02:39]} Qh5 {[%emt 0:00:42]} 33. Ke1 {[%emt 0:00:32]} g3 {[%emt 0:00:32]} 34. f4 {[%emt 0:01:43]} Qf3 {[%emt 0:00:38]} 35. Qe2 {[%emt 0:00:11]} Qe4 {[%emt 0:00:18]} 36. Kd2 {[%emt 0:01:23]} Nf7 {[%emt 0:00:19]} 37. R8c7 {[%emt 0:01:22]} Nd6 {[%emt 0:00:53]} 38. Qg4 {[%emt 0:00:19]} Nf5 {[%emt 0:00:31]} 39. Bg1 {[%emt 0:01:05]} Qg2+ {[%emt 0:00:23]} 40. Kd3 {[%emt 0:00:50]} Qxa2 {[%emt 0:00:39]} 41. Qg6 {[%emt 0:01:20]} Qb3+ 42. Kd2 {[%emt 0:00:08]} Qb4+ {[%emt 0:00:26]} 43. R1c3 {[%emt 0:00:43]} Re7 {[%emt 0:00:43]} 44. R7c5 {[%emt 0:01:19]} Nd6 {[%emt 0:00:23]} 45. f5 {[%emt 0:01:42]} Ne4+ {[%emt 0:00:33]} 46. Kc2 {[%emt 0:00:31]} Nxc3 {[%emt 0:00:19]} 47. Rxc3 {[%emt 0:00:53]} exf5 {[%emt 0:00:23]} 48. Be3 {[%emt 0:00:42]} Qxb5 {[%emt 0:00:54]} 0-1

[Event "2nd Sharjah Masters 2018"]
[Site "Sharjah"]
[Date "2018.04.16"]
[Round "6"]
[White "Al-Zaabi, Sultan"]
[Black "Dixit, Nikhil"]
[Result "0-1"]
[ECO "A49"]
[WhiteElo "2061"]
[BlackElo "2285"]
[Annotator "NA RC"]
[PlyCount "52"]
[EventDate "2018.??.??"]
[EventType "swiss"]
[EventCountry "UAE"]
[SourceTitle "playchess.com"]
[Source "ChessBase"]
[SourceQuality "1"]
[TimeControl "5400+30"]

1. d4 {[%emt 0:05:12]} Nf6 {[%emt 0:00:39]} 2. Nf3 {[%emt 0:00:21]} g6 {[%emt 0:00:05]} 3. g3 {[%emt 0:00:10]} Bg7 {[%emt 0:00:05]} 4. Bg2 {[%emt 0:00:08]} O-O {[%emt 0:00:05]} 5. O-O {[%emt 0:00:05]} d6 {[%emt 0:00:06]} 6. a4 {[%emt 0:01:46]} a5 {[%emt 0:03:08]} 7. b3 {[%emt 0:00:20]} e5 {[%emt 0:05:43]} 8. dxe5 {[%emt 0:01:41]} Ng4 {[%emt 0:01:44]} 9. Bg5 {[%emt 0:07:09]} Qd7 {[%emt 0:06:29]} 10. Nc3 {[%emt 0:07:29]} h6 {[%emt 0:10:06]} 11. Bd2 {[%emt 0:09:30]} Nxe5 {[%emt 0:16:59]} 12. Nxe5 {[%emt 0:04:23]} dxe5 {[%emt 0:01:09]} 13. Qc1 {[%emt 0:08:20]} Kh7 {[%emt 0:00:46]} 14. Rd1 {[%emt 0:04:32]} c6 {[%emt 0:07:57]} 15. Ne4 {[%emt 0:03:49]} Qe7 {[%emt 0:07:40]} 16. Be3 {[%emt 0:02:17]} Na6 {[%emt 0:03:12]} 17. Bb6 {[%emt 0:03:21]} Qb4 {[%emt 0:10:53]} 18. Be3 {[%emt 0:11:00]} f5 {[%emt 0:06:29]} 19. Nd6 {[%emt 0:00:22]} f4 {[%emt 0:01:29]} 20. Nxc8 {[%emt 0:09:17]} fxe3 {[%emt 0:00:29]} 21. Nd6 {[%emt 0:00:17]} exf2+ {[%emt 0:00:43]} 22. Kh1 {[%emt 0:00:25]} Rad8 {[%emt 0:07:22]} 23. Ne4 {[%emt 0:04:56]} Rxd1+ {[%emt 0:00:48]} 24. Qxd1 {[%emt 0:00:15]} f1=Q+ {[%emt 0:00:56]} 25. Bxf1 {[%emt 0:00:14]} Qxe4+ {[%emt 0:00:07]} 26. Bg2 {[%emt 0:00:02]} Qd4 {[%emt 0:00:14]} 0-1